bitfinex-derivatives/quotes_ETHF0:USTF0_20250620
["timestamp","ask_amount","ask_price","bid_price","bid_amount"]
[1750428973920,25.179,2536.3,2536.2,5.78849]
[1750428974325,27.12622994,2536.3,2536.2,5.0]
[1750428974927,27.06822994,2536.3,2536.2,5.0]
[1750428975319,1.15876994,2536.3,2536.2,5.78849]
[1750428975523,26.27076994,2536.3,2536.2,5.78849]
[1750428975929,1.15876994,2536.3,2536.2,5.78849]
[1750428976127,1.94722994,2536.3,2536.2,5.0]
[1750428976318,1.15876994,2536.3,2536.2,5.78849]
[1750428976522,1.94722994,2536.3,2536.2,5.78849]
[1750428976717,1.94722994,2536.3,2536.2,5.0]
[1750428977325,3.43472994,2536.3,2536.2,5.0]
[1750428977630,5.75554359,2536.3,2536.2,5.0]
[1750428977829,5.07772994,2536.3,2536.2,5.0]
[1750428978022,37.02872994,2536.3,2536.2,5.0]
[1750428978424,37.02672994,2536.3,2536.2,5.0]
[1750428979923,35.53922994,2536.3,2536.2,5.0]
[1750428980526,3.59022994,2536.3,2536.2,5.0]
[1750428980725,39.27144359,2536.3,2536.2,5.0]
[1750428980927,44.27144359,2536.3,2536.2,5.0]
[1750428981432,41.95062994,2536.3,2536.2,5.0]
[1750428981929,41.95062994,2536.3,2536.2,4.13938]
[1750428982229,45.02573356,2536.3,2536.2,0.07115]
[1750428982732,41.95062994,2536.3,2536.2,0.07115]
[1750428983530,0.78871,2535.5,2535.4,0.78872]
[1750428983733,25.046,2535.5,2535.4,0.78873]
[1750428983929,26.20476994,2535.5,2535.4,0.78873]
[1750428984225,0.78875,2535.4,2535.3,0.78876]
[1750428984433,1.94752994,2535.4,2535.2,1.548]
[1750428984628,25.042,2535.3,2535.2,2.33678]
[1750428985221,25.83077,2535.3,2535.2,2.33678]
[1750428985432,25.83077,2535.3,2535.2,1.548]
[1750428985833,26.99425298,2535.3,2535.2,1.548]
[1750428986430,0.78905,2534.4,2534.3,3.2078]
[1750428986734,0.78905,2534.4,2533.9,1.4178]
[1750428986735,37.36366232,2534.4,2533.9,1.4178]
[1750428986938,36.98892908,2534.4,2534.3,5.0]
[1750428987133,38.15264081,2534.4,2534.3,5.0]
[1750428988232,1.16371173,2534.4,2534.3,5.78909]
[1750428988439,26.20371173,2534.4,2534.3,5.78909]
[1750428988631,25.04,2534.4,2534.3,5.78909]
[1750428989033,25.82905,2534.4,2534.3,5.0]
[1750428989427,25.82905,2534.4,2534.3,7.20259]
[1750428989632,3.2078,2534.5,2534.4,0.78905]
[1750428989837,28.2448,2534.5,2534.4,2.20255]
[1750428990138,25.037,2534.5,2534.4,2.20255]
[1750428990331,0.78895,2534.8,2534.4,1.4135]
[1750428990638,25.82696,2534.7,2534.5,2.2256]
[1750428990831,25.82696,2534.7,2534.6,1.4135]
[1750428991032,25.038,2534.7,2534.6,2.20249]
[1750428991334,3.2078,2535.1,2534.6,1.4135]
[1750428991638,0.78892,2534.9,2534.8,0.78892]
[1750428992031,0.78892,2534.9,2534.7,2.20244]
[1750428992241,25.82789,2535.0,2534.7,1.4135]
[1750428992430,0.78886,2535.1,2534.9,0.78887]
[1750428992633,0.78879,2535.3,2535.2,0.78881]
[1750428992830,3.2078,2535.4,2535.1,0.78881]
[1750428993035,0.78877,2535.3,2535.2,1.4556]
[1750428993239,0.78881,2535.2,2535.1,1.4172]
[1750428993533,25.027,2535.2,2534.7,1.4556]
[1750428993739,0.78885,2535.1,2535.0,0.78886]
[1750428995842,25.81583,2535.2,2535.1,0.78884]
[1750428996438,25.79581,2535.2,2535.1,0.78884]
[1750428996837,3.2078,2535.4,2535.3,0.78877]
[1750428997039,0.7888,2535.3,2535.2,0.78879]
[1750428997336,0.7888,2535.3,2534.9,3.42784]
[1750428997337,0.78887,2535.0,2534.9,1.4556]
[1750428997538,0.78887,2535.0,2534.8,3.2078]
[1750428997539,0.7889,2534.9,2534.8,3.2078]
[1750428997736,0.78896,2534.7,2534.6,1.4172]
[1750428997932,38.15530908,2534.7,2534.3,5.0]
[1750428998134,3.2078,2534.7,2534.3,5.0]
[1750428998442,0.78902,2534.5,2534.4,2.33034]
[1750428998644,25.83501,2534.6,2534.5,0.78902]
[1750428998943,25.046,2534.6,2534.5,2.33032]
[1750428999536,25.83499,2534.6,2534.5,2.33032]
[1750428999744,25.046,2534.6,2534.5,2.33032]
[1750429000245,25.83499,2534.6,2534.5,2.33032]
[1750429000442,25.83499,2534.6,2534.5,1.5413]
[1750429001644,0.78905,2534.4,2534.3,5.78909]
[1750429001845,0.78905,2534.4,2534.3,5.0]
[1750429002341,0.78905,2534.4,2534.3,6.4833]
[1750429002541,25.046,2534.6,2534.3,7.27239]
[1750429002845,0.78904,2534.5,2534.4,0.78905]
[1750429003040,25.83501,2534.6,2534.5,0.78902]
[1750429003748,0.78902,2534.5,2534.4,2.27233]
[1750429004546,25.83501,2534.6,2534.5,0.78902]
[1750429004939,0.78902,2534.5,2534.4,2.27234]
[1750429005838,25.046,2534.6,2534.5,0.78902]
[1750429005839,25.83502,2534.6,2534.5,0.78902]
[1750429006033,25.83502,2534.6,2534.5,2.30572]
[1750429007643,25.046,2534.6,2534.5,2.30572]
[1750429007843,28.1878,2534.7,2534.6,0.78899]
[1750429008344,28.1878,2534.7,2534.6,2.25819]
[1750429008544,28.97676,2534.7,2534.6,1.4692]
[1750429008750,0.78902,2534.5,2534.4,0.78904]
[1750429008935,0.78909,2534.4,2534.3,0.78906]
[1750429009141,0.78909,2534.4,2534.3,2.24236]
[1750429009445,25.78104,2534.5,2534.4,0.78905]
[1750429009642,25.78104,2534.5,2534.4,2.24235]
[1750429010042,0.78909,2534.3,2534.2,1.4692]
[1750429010336,0.78909,2534.3,2533.8,1.4533]
[1750429010337,0.78921,2533.9,2533.8,1.4533]
[1750429010540,0.78924,2533.8,2533.7,0.78927]
[1750429010742,0.78924,2533.8,2533.7,2.30607]
[1750429010936,0.78924,2533.8,2533.6,3.2078]
[1750429011148,1.97311,2533.8,2533.4,3.77524]
[1750429011446,35.04078524,2533.9,2533.4,2.9859]
[1750429011740,0.7893,2533.6,2533.5,0.78933]
[1750429011939,0.78933,2533.5,2533.4,1.4691]
[1750429012140,25.002,2533.6,2533.5,0.78933]
[1750429012339,26.166739,2533.6,2533.4,1.4691]
[1750429012542,25.0,2533.6,2533.5,0.78933]
[1750429012943,24.999,2533.7,2533.6,0.7893]
[1750429013243,3.2078,2534.2,2534.1,0.78915]
[1750429013439,29.37927292,2534.2,2534.1,0.78915]
[1750429014044,29.00192,2534.2,2534.1,0.78915]
[1750429014543,28.2128,2534.2,2534.1,0.78915]
[1750429015040,28.2128,2534.2,2534.1,2.24645]
[1750429015235,2.3083521,2534.9,2534.2,1.9728]
[1750429015439,1.16892889,2534.8,2534.7,0.78896]
[1750429015640,25.78788,2535.0,2534.6,1.549]
[1750429015841,1.1696555,2534.9,2534.6,1.549]
[1750429016041,0.7889,2534.9,2534.6,1.549]
[1750429016248,24.999,2535.0,2534.6,1.549]
[1750429016447,0.78895,2534.8,2534.6,1.549]
[1750429016943,25.79596,2534.7,2534.6,1.549]
[1750429017447,0.78901,2534.6,2534.1,3.2078]
[1750429017644,25.007,2534.7,2534.6,0.78899]
[1750429018039,25.80196,2534.7,2534.6,0.78899]
[1750429018245,25.013,2534.7,2534.6,0.78899]
[1750429018437,0.78892,2534.9,2534.8,0.78893]
[1750429018642,26.97090199,2534.9,2534.8,0.78893]
[1750429019044,26.17698199,2534.9,2534.8,0.78893]
[1750429019338,26.17098199,2534.9,2534.8,0.78893]
[1750429020146,0.78894,2534.8,2534.4,8.75161]
[1750429020349,0.78897,2534.7,2534.6,0.78897]
[1750429020750,0.78902,2534.5,2534.4,0.78903]
[1750429021050,24.986,2534.7,2534.6,0.78897]
[1750429021252,24.986,2534.7,2534.5,0.789]
[1750429021550,0.78902,2534.6,2534.4,0.78904]
[1750429021754,0.78905,2534.4,2534.3,1.5129]
[1750429021952,0.78921,2533.9,2533.8,5.0]
[1750429022744,11.96918087,2533.9,2533.8,5.0]
[1750429023251,13.13560451,2533.9,2533.8,5.0]
[1750429024547,18.13560451,2533.9,2533.8,4.18148]
[1750429024753,49.87760451,2533.9,2533.8,2.22432]
[1750429024952,51.37880451,2533.9,2533.8,2.22432]
[1750429025447,51.37653615,2533.9,2533.8,1.34781]
[1750429025651,0.78943,2533.2,2533.0,0.78948]
[1750429025954,25.77448,2533.1,2532.8,0.78952]
[1750429026148,0.78955,2532.8,2532.7,1.5372]
[1750429026348,11.17997087,2532.9,2532.1,3.2078]
[1750429026552,0.78958,2532.8,2532.5,0.78963]
[1750429026750,11.96951087,2532.9,2532.6,0.78961]
[1750429026950,24.994,2532.8,2532.7,0.78956]
[1750429027553,24.994,2532.8,2532.7,0.78958]
[1750429028451,24.992,2532.8,2532.7,0.78958]
[1750429028847,25.78155,2532.8,2532.6,0.7896]
[1750429029053,11.17997087,2532.9,2532.4,3.2078]
[1750429029250,11.17997087,2532.9,2532.7,0.78957]
[1750429029251,24.981,2532.8,2532.7,0.78957]
[1750429029643,0.78962,2532.6,2532.4,3.2078]
[1750429029844,0.78959,2532.7,2532.5,0.78963]
[1750429030053,0.78953,2532.9,2532.7,0.78957]
[1750429030244,4.7246,2533.1,2532.5,1.502]
[1750429030447,31.738,2533.0,2532.9,0.78952]
[1750429030654,32.52749,2533.0,2532.8,0.78954]
[1750429030858,31.738,2533.0,2532.8,0.78954]
[1750429031147,31.738,2533.0,2532.5,1.502]
[1750429031148,0.78955,2532.8,2532.5,1.502]
[1750429031549,0.7896,2532.7,2532.5,1.502]
[1750429031749,24.988,2532.6,2532.5,2.29163]
[1750429032050,1.97412,2532.5,2532.0,0.78979]
[1750429032246,11.17997087,2532.3,2531.8,1.521]
[1750429032446,11.17997087,2532.0,2531.5,3.2078]
[1750429032654,0.79004,2531.3,2531.1,4.7288]
[1750429032961,24.997,2531.3,2531.1,5.51887]
[1750429033255,28.2048,2531.3,2530.6,3.2078]
[1750429033447,0.79008,2531.2,2530.7,1.521]
[1750429033647,0.79012,2531.0,2530.7,1.521]
[1750429033851,11.17997087,2530.8,2530.4,1.4541]
[1750429034050,0.79022,2530.7,2530.5,1.521]
[1750429034358,18.72416087,2530.8,2530.5,2.31126]
[1750429034655,18.72417087,2530.8,2530.5,2.31127]
[1750429034855,17.93397087,2530.8,2530.5,2.31127]
[1750429035255,6.754,2530.8,2530.7,0.79021]
[1750429035451,3.2078,2531.2,2531.0,0.79011]
[1750429035452,6.756,2531.2,2531.0,0.79011]
[1750429035645,0.79003,2531.3,2531.1,0.79008]
[1750429035646,25.84702,2531.3,2531.1,0.79008]
[1750429035850,25.057,2531.3,2531.1,0.79007]
[1750429036049,25.057,2531.3,2531.2,0.79005]
[1750429036246,0.79007,2531.2,2530.8,4.6788]
[1750429036454,36.23697087,2531.3,2530.8,4.6788]
[1750429036850,3.2078,2531.5,2531.0,1.97529]
[1750429037057,3.2078,2531.5,2531.4,0.78999]
[1750429037449,3.2078,2531.5,2531.1,3.0195]
[1750429037650,3.2078,2531.5,2531.4,0.78999]
[1750429038056,3.2078,2531.8,2531.7,0.7899]
[1750429038361,35.0358,2531.8,2531.7,0.7899]
[1750429039056,14.38777087,2532.1,2531.5,3.2078]
[1750429039254,31.84,2532.0,2531.9,0.78983]
[1750429039858,31.84,2532.0,2531.6,1.5461]
[1750429040053,31.84,2532.0,2531.9,0.78983]
[1750429040252,31.84,2532.0,2531.8,0.78985]
[1750429040454,14.38777087,2532.1,2531.6,3.5209]
[1750429040655,31.825,2532.0,2531.6,1.5461]
[1750429040855,31.825,2532.0,2531.9,0.78983]
[1750429041354,3.2078,2532.1,2532.0,0.7898]
[1750429042452,3.2078,2532.1,2531.7,2.9773]
[1750429042655,3.2078,2531.8,2531.2,3.2078]
[1750429042964,11.17997087,2531.6,2531.3,1.474]
[1750429043155,0.79007,2531.2,2530.9,3.2078]
[1750429043456,25.102,2531.1,2531.0,0.79011]
[1750429043662,3.2078,2531.5,2531.0,1.97526]
[1750429043862,25.123,2531.4,2531.3,0.79]
[1750429044563,0.79002,2531.3,2531.1,0.79006]
[1750429044767,25.129,2531.2,2530.9,3.2078]
[1750429045062,0.79008,2531.1,2531.0,1.552]
[1750429045259,0.7902,2530.8,2530.6,1.5033]
[1750429045558,0.7902,2530.8,2530.6,3.84551]
[1750429045765,0.7902,2530.8,2530.6,2.29351]
[1750429046061,25.92817,2530.9,2530.7,0.79021]
[1750429046256,0.79018,2530.8,2530.7,1.552]
[1750429046658,25.138,2530.9,2530.6,5.50131]
[1750429046959,25.92817,2530.9,2530.7,0.79021]
[1750429047357,0.79021,2530.7,2530.6,1.5033]
[1750429047561,0.79015,2530.9,2530.6,1.5033]
[1750429047758,3.2078,2531.0,2530.9,0.79014]
[1750429047953,35.88893,2531.0,2530.8,0.79016]
[1750429048260,3.99793,2531.0,2530.9,1.519]
[1750429048453,28.3398,2531.0,2530.6,1.5033]
[1750429048652,0.79019,2530.8,2530.6,2.29352]
[1750429048865,0.79017,2530.9,2530.7,0.79018]
[1750429049056,25.126,2530.8,2530.7,0.79018]
[1750429049251,3.2078,2531.0,2530.6,3.47887]
[1750429049456,25.127,2531.0,2530.9,0.79015]
[1750429050561,0.79001,2531.4,2531.2,0.79002]
[1750429050757,0.79001,2531.4,2530.7,6.70233]
[1750429050758,25.12,2531.3,2531.1,0.79007]
[1750429050960,25.91002,2531.3,2531.2,2.9513]
[1750429051355,25.12,2531.3,2531.2,2.9513]
[1750429051664,25.12,2531.3,2531.2,3.74135]
[1750429051862,25.91002,2531.3,2531.2,2.9513]
[1750429052063,25.91002,2531.3,2531.2,1.5034]
[1750429052357,26.28340253,2531.3,2531.2,2.29345]
[1750429052557,26.27940253,2531.3,2531.2,2.29345]
[1750429053160,26.27940253,2531.3,2531.0,3.2078]
[1750429053361,0.79008,2531.1,2531.0,3.2078]
[1750429053567,1.95502732,2531.1,2531.0,3.2078]
[1750429054266,26.26994732,2531.1,2531.0,3.99791]
[1750429054466,27.06002732,2531.1,2531.0,3.2078]
[1750429054768,26.26994732,2531.1,2531.0,3.99791]
[1750429055066,27.06002732,2531.1,2531.0,3.99791]
[1750429055771,27.06002732,2531.1,2531.0,3.2078]
[1750429056171,26.26994732,2531.1,2531.0,3.99791]
[1750429056359,26.24594732,2531.1,2531.0,3.99791]
[1750429056565,1.16494732,2531.1,2531.0,3.99791]
[1750429056765,25.077,2531.3,2531.2,0.79005]
[1750429056965,0.78999,2531.4,2531.3,0.79002]
[1750429057171,25.86799,2531.4,2531.3,0.79002]
[1750429057569,0.79005,2531.2,2531.1,3.0]
[1750429057871,25.067,2531.2,2531.1,3.79008]
[1750429058075,25.067,2531.3,2531.2,0.79005]
[1750429058262,25.067,2531.3,2531.2,2.35225]
[1750429058465,3.99774,2531.6,2531.5,0.78996]
[1750429058663,29.06973,2531.6,2531.5,0.78996]
[1750429058868,25.86193,2531.6,2531.5,0.78996]
[1750429059072,0.78996,2531.5,2531.4,0.78997]
[1750429059373,0.78998,2531.5,2531.3,4.6642]
[1750429059673,0.78998,2531.5,2531.4,0.78999]
[1750429060673,0.78999,2531.4,2531.3,1.4564]
[1750429060970,0.78997,2531.5,2531.3,1.4564]
[1750429061176,0.78997,2531.5,2531.4,0.78997]
[1750429061469,0.78999,2531.4,2531.3,2.24639]
[1750429061869,27.3803521,2531.6,2531.4,0.78998]
[1750429061870,0.78998,2531.5,2531.4,0.78998]
[1750429062268,3.0983321,2531.5,2531.4,0.78998]
[1750429062469,0.78998,2531.5,2531.4,0.78998]
[1750429064075,0.78999,2531.4,2531.3,2.24641]
[1750429064476,3.0983221,2531.5,2531.4,0.78999]
[1750429064780,27.3803521,2531.6,2531.5,0.78996]
[1750429064981,28.1292821,2531.6,2531.5,0.78996]
[1750429065175,2.3083521,2531.6,2531.5,0.78996]
[1750429065376,12.3111521,2531.7,2531.6,0.78993]
[1750429065582,37.3421521,2531.7,2531.3,4.6642]
[1750429065780,0.78999,2531.4,2531.3,4.6642]
[1750429065977,0.79005,2531.3,2531.2,0.79004]
[1750429066382,0.79004,2531.3,2531.2,0.79003]
[1750429066578,25.023,2531.3,2531.1,2.9906]
[1750429066776,25.023,2531.3,2531.2,2.34285]
[1750429066978,0.78995,2531.6,2531.2,2.34285]
[1750429067178,25.81696,2531.5,2531.4,0.78999]
[1750429067390,3.2078,2531.7,2531.6,0.78993]
[1750429067591,29.0217,2531.7,2531.6,0.78993]
[1750429067996,28.2318,2531.7,2531.6,0.78993]
[1750429068190,28.2278,2531.7,2531.6,0.78993]
[1750429068395,29.0177,2531.7,2531.6,0.78993]
[1750429068802,4.37605393,2531.7,2531.6,0.78993]
[1750429068990,2.3083521,2532.2,2531.9,0.78983]
[1750429069192,3.0980421,2532.4,2532.3,0.78971]
[1750429069491,0.78977,2532.1,2532.0,2.9325]
[1750429069687,25.81677,2532.1,2532.0,1.4977]
[1750429069893,0.78986,2531.8,2531.7,3.99768]
[1750429070103,0.7899,2531.7,2531.6,1.4977]
[1750429070295,25.82588,2531.8,2531.6,1.4977]
[1750429070492,25.036,2531.8,2531.7,0.7899]
[1750429070695,0.78985,2531.9,2531.8,0.78986]
[1750429070999,25.037,2531.9,2531.7,2.22467]
[1750429071187,25.82686,2531.9,2531.7,2.22467]
[1750429071392,25.82686,2531.9,2531.8,2.32686]
[1750429071699,25.82686,2531.9,2531.8,1.537]
[1750429072197,25.82686,2531.9,2531.6,1.4977]
[1750429072198,0.7899,2531.7,2531.6,1.4977]
[1750429072788,25.037,2531.9,2531.6,1.4977]
[1750429073099,25.037,2531.9,2531.7,0.78988]
[1750429073399,25.82685,2531.9,2531.6,1.4977]
[1750429073594,25.82685,2531.9,2531.7,0.78987]
[1750429073797,0.78986,2531.8,2531.6,1.4977]
[1750429074001,0.7899,2531.7,2531.6,2.2876]
[1750429074202,41.41537087,2531.9,2531.4,2.32697]
[1750429074599,0.78995,2531.6,2531.5,0.78996]
[1750429074795,25.80295,2531.6,2531.4,1.537]
[1750429075100,25.013,2531.6,2531.5,0.78996]
[1750429075403,0.78991,2531.7,2531.4,1.537]
[1750429075701,25.013,2531.6,2531.5,0.78993]
[1750429077003,25.80293,2531.6,2531.5,0.78993]
[1750429077197,0.78996,2531.5,2531.4,2.32697]
[1750429077504,0.78999,2531.4,2531.3,8.99779]
[1750429077701,0.78998,2531.5,2531.4,0.78996]
[1750429077891,25.013,2531.6,2531.4,0.78996]
[1750429077892,25.013,2531.7,2531.6,0.78993]
[1750429078504,3.99765,2531.9,2531.8,0.78986]
[1750429078804,0.78989,2531.8,2531.7,0.78987]
[1750429079203,29.01065,2531.9,2531.8,0.78986]
[1750429079402,29.01063,2531.9,2531.8,0.78986]
[1750429079603,0.78987,2531.8,2531.7,0.78987]
[1750429079804,3.99765,2531.9,2531.8,0.78986]
[1750429080004,28.2208,2531.9,2531.8,0.78986]
[1750429080206,25.012,2531.9,2531.7,1.4144]
[1750429080403,25.80185,2531.9,2531.8,2.32043]
[1750429080700,25.012,2531.9,2531.7,1.4144]
[1750429080898,25.80186,2531.8,2531.7,3.73488]
[1750429081100,26.17352674,2531.8,2531.7,3.73488]
[1750429081805,26.96338674,2531.8,2531.7,2.945]
[1750429082005,26.96338674,2531.8,2531.7,1.4144]
[1750429082201,26.17352674,2531.8,2531.7,2.2043]
[1750429083003,26.96338674,2531.8,2531.7,2.2043]
[1750429083199,26.17352674,2531.8,2531.7,2.2043]
[1750429083404,26.96338674,2531.8,2531.7,2.2043]
[1750429083599,26.17352674,2531.8,2531.7,2.2043]
[1750429084109,26.96338674,2531.8,2531.7,2.2043]
[1750429084306,26.17352674,2531.8,2531.7,2.2043]
[1750429084515,25.011,2531.9,2531.8,0.78986]
[1750429084709,25.011,2532.0,2531.9,0.78983]
[1750429085307,0.78983,2531.9,2531.8,2.33053]
[1750429085711,0.78986,2531.8,2531.7,1.4144]
[1750429086104,0.78986,2531.8,2531.7,2.2043]
[1750429086300,0.78984,2531.9,2531.8,0.78983]
[1750429086505,25.80082,2532.0,2531.9,0.78983]
[1750429086706,1.4562,2532.2,2531.7,4.6222]
[1750429086707,0.7898,2532.1,2532.0,0.78979]
[1750429087106,25.7988,2532.1,2532.0,0.78979]
[1750429087712,26.96233194,2532.1,2532.0,0.78979]
[1750429088011,1.16353194,2532.1,2532.0,0.78979]
[1750429088507,1.16353194,2532.1,2532.0,3.99759]
[1750429089310,0.78982,2532.0,2531.9,0.7898]
[1750429089512,1.95332194,2532.1,2532.0,0.7898]
[1750429089711,26.96132194,2532.1,2532.0,0.7898]
[1750429090302,0.78983,2532.0,2531.9,0.78981]
[1750429090806,0.78983,2531.9,2531.8,0.78984]
[1750429091008,0.78986,2531.8,2531.7,5.41208]
[1750429091312,0.7899,2531.7,2531.6,0.78991]
[1750429091808,25.007,2531.8,2531.7,0.7899]
[1750429092113,25.007,2531.8,2531.7,3.9977]
[1750429092813,25.79686,2531.8,2531.7,3.9977]
[1750429093013,25.79686,2531.8,2531.7,0.7899]
[1750429093513,1.16353194,2532.1,2531.7,5.18255]
[1750429093809,1.16353194,2532.1,2532.0,0.7898]
[1750429094216,2.32716859,2532.1,2532.0,0.7898]
[1750429094611,2.32716859,2532.1,2532.0,5.395]
[1750429095505,3.11693859,2532.1,2532.0,3.9976]
[1750429095711,27.33216859,2532.1,2532.0,3.9976]
[1750429095904,27.33216859,2532.1,2532.0,8.9976]
[1750429096109,28.12193859,2532.1,2532.0,8.9976]
[1750429096412,27.33216859,2532.1,2532.0,8.9976]
[1750429096807,2.32716859,2532.1,2532.0,8.9976]
[1750429097114,2.32716859,2532.1,2532.0,10.492]
[1750429097511,2.32716859,2532.1,2532.0,7.2842]
[1750429097914,27.33116859,2532.1,2532.0,10.492]
[1750429098112,27.33116859,2532.1,2532.0,8.9976]
[1750429098614,27.33116859,2532.1,2532.0,10.466]
[1750429099011,2.32716859,2532.1,2532.0,10.466]
[1750429099314,10.84910218,2532.2,2532.0,9.6762]
[1750429099514,0.78977,2532.1,2532.0,8.99759]
[1750429099817,35.85209218,2532.2,2532.1,0.78977]
[1750429100006,35.06233218,2532.2,2532.1,0.78977]
[1750429100210,25.003,2532.2,2532.0,8.2078]
[1750429100406,10.84910218,2532.1,2532.0,5.0]
[1750429100613,14.05690218,2532.1,2532.0,1.50326681]
[1750429100919,20.51580218,2532.1,2532.0,1.50326681]
[1750429101414,1.97475,2531.7,2531.2,0.79004]
[1750429101611,10.05933218,2531.5,2531.2,0.79004]
[1750429101816,10.05933218,2531.5,2531.1,3.67847]
[1750429102117,10.05933218,2531.5,2531.1,2.21007]
[1750429102319,11.50813218,2531.5,2531.3,0.79]
[1750429102512,0.78993,2531.6,2531.4,0.78996]
[1750429102711,25.002,2531.5,2531.3,0.79]
[1750429102912,25.79198,2531.5,2531.3,0.79]
[1750429103417,25.79198,2531.5,2531.4,0.78999]
[1750429103618,25.79198,2531.5,2531.3,0.79]
[1750429104021,25.002,2531.5,2531.4,0.78999]
[1750429104215,0.78995,2531.6,2531.5,0.78996]
[1750429104416,0.78996,2531.5,2531.4,0.78998]
[1750429104713,25.003,2531.5,2531.1,3.39519]
[1750429104914,25.79297,2531.5,2531.3,0.79]
[1750429105113,25.003,2531.5,2531.4,0.78999]
[1750429106620,25.003,2531.9,2531.4,5.0]
[1750429106820,3.2078,2532.4,2531.8,0.78986]
[1750429107020,25.003,2532.3,2532.2,0.78973]
[1750429107319,3.2078,2532.8,2532.2,1.97436]
[1750429107515,3.2078,2532.8,2532.7,0.78958]
[1750429108019,6.755,2533.1,2533.0,0.78949]
[1750429108219,25.021,2533.1,2532.5,2.9447]
[1750429108523,10.05933218,2532.8,2532.5,8.73432]
[1750429108826,3.99741,2532.6,2532.5,5.0]
[1750429109120,10.75241,2532.6,2532.5,5.0]
[1750429109321,12.23741,2532.6,2532.5,5.0]
[1750429109619,25.84061,2532.6,2532.5,5.0]
[1750429110620,32.29751,2532.6,2532.5,5.0]
[1750429111120,7.24651,2532.6,2532.5,5.0]
[1750429111314,39.06751,2532.6,2532.5,5.0]
[1750429112117,39.05851,2532.6,2532.5,5.0]
[1750429113118,32.58761,2532.6,2532.5,5.0]
[1750429114219,33.99621,2532.6,2532.5,5.0]
[1750429115721,33.97721,2532.6,2532.5,5.0]
[1750429116921,32.56861,2532.6,2532.5,5.0]
[1750429117117,32.55761,2532.6,2532.5,5.0]
[1750429117313,31.768,2532.6,2532.5,5.78965]
[1750429117519,2.43257,2532.8,2532.7,0.78958]
[1750429117718,27.43857,2532.8,2532.5,8.2078]
[1750429117917,3.2078,2533.0,2532.9,0.78952]
[1750429119122,28.2388,2533.0,2532.9,0.78952]
[1750429119327,6.757,2533.5,2532.9,4.7386]
[1750429119521,25.81436,2533.4,2533.3,0.78937]
[1750429119721,25.81436,2533.4,2533.2,0.78941]
[1750429119914,25.81437,2533.4,2533.3,0.7894]
[1750429120119,25.81437,2533.4,2533.0,1.41]
[1750429120325,0.78936,2533.5,2533.3,0.7894]
[1750429120532,0.78936,2533.5,2533.4,1.4627]
[1750429120719,25.013,2533.5,2533.4,2.25206]
[1750429120921,0.78931,2533.6,2533.4,2.25206]
[1750429121225,10.84862218,2533.7,2533.5,0.78932]
[1750429121423,25.007,2533.6,2532.9,4.7386]
[1750429121624,10.05933218,2533.3,2533.0,1.4627]
[1750429121922,25.79242,2533.3,2533.1,0.78945]
[1750429122127,10.05933218,2533.5,2533.2,2.25213]
[1750429122128,0.78938,2533.4,2533.2,2.25213]
[1750429122329,3.2078,2533.9,2533.2,1.4627]
[1750429122523,0.78929,2533.7,2533.5,0.78932]
[1750429122727,0.78929,2533.7,2533.4,0.78934]
[1750429122928,0.78936,2533.4,2533.3,1.4627]
[1750429123124,0.78941,2533.3,2532.9,9.7386]
[1750429123428,0.78941,2533.3,2533.1,0.78944]
[1750429123728,0.78941,2533.3,2533.2,1.4487]
[1750429124422,25.78737,2533.4,2533.2,2.23813]
[1750429124628,25.004,2533.3,2533.2,2.23813]
[1750429124822,25.004,2533.3,2533.2,0.78943]
[1750429125022,25.7934,2533.3,2533.2,0.78943]
[1750429125222,25.7934,2533.3,2533.1,0.78944]
[1750429125427,25.7934,2533.3,2533.2,0.78943]
[1750429125823,0.78938,2533.4,2533.3,0.7894]
[1750429126024,24.996,2533.4,2533.3,0.7894]
[1750429126329,25.78536,2533.4,2533.2,3.9972]
[1750429126527,25.78537,2533.4,2533.3,0.7894]
[1750429126726,24.996,2533.4,2533.3,0.7894]
[1750429127125,0.78932,2533.6,2533.2,3.2078]
[1750429127321,24.996,2533.5,2533.2,3.2078]
[1750429127721,3.2078,2533.9,2533.3,6.755]
[1750429127930,0.78925,2533.8,2533.7,0.78925]
[1750429128619,0.7894,2533.3,2533.2,3.2078]
[1750429129327,0.78949,2533.0,2532.9,5.0]
[1750429129523,25.78349,2533.0,2532.9,5.0]
[1750429130328,28.99129,2533.0,2532.9,5.0]
[1750429131525,25.78349,2533.0,2532.9,5.0]
[1750429131728,24.994,2533.0,2532.9,5.0]
[1750429132027,0.78949,2533.0,2532.9,5.0]
[1750429132325,3.99729,2533.0,2532.9,5.0]
[1750429132723,8.99729,2533.0,2532.9,5.0]
[1750429132924,0.78977,2532.1,2532.0,3.2078]
[1750429133531,0.78976,2532.2,2532.0,3.9976]
[1750429133829,0.78976,2532.2,2532.0,3.99759]
[1750429134029,0.78976,2532.2,2532.0,0.78979]
[1750429134732,25.005,2532.3,2531.8,6.755]
[1750429134932,5.18167,2532.9,2532.2,3.2078]
[1750429135126,12.03330218,2532.7,2532.2,3.2078]
[1750429135332,5.18184,2532.6,2531.9,3.2078]
[1750429135532,0.7897,2532.4,2532.2,0.78973]
[1750429135834,15.24100218,2532.9,2532.4,0.78968]
[1750429136135,0.78963,2532.6,2532.4,0.78968]